Cogmind - Beta 16.1 @@@ ROGUE MODE // 2026.04.30 @ 20:54:18 Player: Pavlikek Result: Destroyed by G-47 Trooper with Particle Gun Performance ------------- Evolutions (2) 1000 Regions Visited (3) 600 Robots Destroyed (25) 125 Value Destroyed (688) 688 Prototype IDs (0) 0 Alien Tech Used (0) 0 Bonus (0) 0 TOTAL SCORE: 2413 Bonus ------- None Cogmind --------- Core Integrity 0/550 Matter 157/300 Energy 93/100 System Corruption 0% Temperature Cool (9) Movement Core (100) Ox1 Location -8/Materials Parts ------- > --- POWER (1) -------- (None) > --- PROPULSION (3) --- (None) > --- UTILITY (5) ------ Disposable Heat Sink Disposable Heat Sink Terrain Scan Processor Seismic Detector > --- WEAPON (2) ------- Hammer > --- INVENTORY (5) ---- Compact Wheel Heavy Assault Rifle Mining Claw Peak State ------------ > --- POWER ------------ Light Ion Engine > --- PROPULSION ------- Wheel Wheel Compact Wheel > --- UTILITY ---------- Disposable Heat Sink Disposable Heat Sink Small Storage Unit Terrain Scan Processor Seismic Detector > --- WEAPON ----------- Particle Gun Heavy Assault Rifle > --- INVENTORY -------- Compact Wheel Light Armor Plating Heavy Assault Rifle Heavy Assault Rifle Hammer Mining Claw [Rating: 16] Favorites ----------- Power Ion Engine Engine Ion Engine Propulsion Aluminum Leg Leg Aluminum Leg Wheel Compact Wheel Utility Small Storage Unit Device ECM Suite Storage Small Storage Unit Processor Terrain Scan Processor Protection Scrap Shield Weapon Assault Rifle Energy Gun Particle Gun Ballistic Gun Assault Rifle Launcher Grenade Launcher Special Weapon Mining Laser Impact Weapon Hammer Slashing Weapon Mining Claw Build | -11 -10 -10 -8 ------- Run | Yrd Mat Sub Mat Slots Evolved 4 | . . . 4 Power . | . . . . Propulsion 1 | . . . 1 Utility 3 | . . . 3 Weapon . | . . . . Parts Attached 30 | 6 9 2 13 Power 3 | 1 . 1 1 Engine 3 | 1 . 1 1 Core . | . . . . Reactor . | . . . . Propulsion 8 | 2 3 . 3 Treads . | . . . . Leg 3 | 2 1 . . Wheel 5 | . 2 . 3 Hover . | . . . . Flight . | . . . . Utility 9 | 1 3 1 4 Device 4 | . 2 . 2 Storage 2 | 1 1 . . Processor 1 | . . . 1 Hackware . | . . . . Protection 2 | . . 1 1 Artifact . | . . . . Weapon 10 | 2 3 . 5 Energy Gun 1 | . . . 1 Energy Cannon . | . . . . Ballistic Gun 5 | 2 . . 3 Ballistic Cannon . | . . . . Launcher 1 | . . . 1 Special Weapon 1 | . 1 . . Impact Weapon 1 | . 1 . . Slashing Weapon 1 | . 1 . . Piercing Weapon . | . . . . Special Melee Weapon . | . . . . Unidentified Prototypes . | . . . . Parts Lost 16 | . 1 2 13 Power 2 | . . . 2 Propulsion 5 | . 1 1 3 Utility 4 | . . 1 3 Weapon 5 | . . . 5 Highest Loss Streak 9 | . 1 1 9 To Critical Strikes . | . . . . Average Backups 5 | 1 6 5 4 Power 1 | . 1 . . Propulsion . | . 1 . . Utility . | . . 2 . Weapon 3 | . 3 2 3 Tool/Special . | . . . . Unused Backups 3 | . 1 2 . Power 1 | . . 1 . Propulsion 1 | . 1 . . Utility . | . . . . Weapon 1 | . . 1 . Tool/Special . | . . . . Average Slot Usage (%) 88 | . 96 77 73 Engine 12 | . 14 14 7 Leg 15 | . 23 . . Wheel 8 | . 3 20 15 Device 12 | . 12 3 18 Storage 11 | . 14 4 9 Protection 1 | . . 8 3 Energy Gun 1 | . . . 5 Ballistic Gun 10 | . 11 11 7 Impact Weapon 9 | . 11 14 3 Slashing Weapon 1 | . 2 . . Peak Build Rating 16 | 6 7 9 16 Average Rating 7 | 4 6 7 10 On Entrance 4 | . 6 6 4 Avg Prop Armor Cover (%) . | . . . . Naked Turns . | . . . . Heaviest Build 25 | 14 16 25 19 Greatest Support 42 | 20 26 26 42 Greatest Overweight (x) 4 | 2 4 1 . Average Overweight (x) . | . . . . Largest Inventory Capacity 8 | 8 8 8 8 Average Capacity 7 | 5 8 5 7 Most Carried 8 | 2 8 8 8 Average Carried 5 | 1 6 5 4 Final Capacity 8 | 8 8 5 5 Final Carried 7 | 2 7 5 3 Class Distribution -------------------- 93% | Mutant 6% | Scavenger-Mutant Dominant Class ---------------- Mutant | -10/Materials Mutant | -10/Subcaves Mutant | -8/Materials Resources | -11 -10 -10 -8 ----------- Run | Yrd Mat Sub Mat Matter Collected 608 | 240 202 49 117 Remotely . | . . . . Salvage Created 737 | 60 285 . 392 Parts 30 | 1 7 . 22 Haulers Intercepted . | . . . . Recyclers Shooed . | . . . . Parts Field Recycled . | . . . . Retrieved Matter . | . . . . Parts Self-Destructed 4 | . . 4 . Prevented . | . . . . Parts Restored . | . . . . Kills | -11 -10 -10 -8 ------- Run | Yrd Mat Sub Mat Combat Hostiles Destroyed 19 | . 11 . 8 Melee 6 | . 6 . . Guns 3 | . . . 3 AOE 5 | . . . 5 Classes Destroyed 7 | 1 3 . 3 Builder 3 | . . . 3 Recycler 2 | 1 . . 1 Watcher 1 | . 1 . . Swarmer 6 | . 6 . . Grunt 9 | . 5 . 4 Sentry 2 | . . . 2 Specialist 2 | . . . 2 Best Kill Streak 8 | 1 4 . 8 Combat Bots Only 5 | . 4 . 5 Max Kills in Single Turn 2 | 1 1 . 2 Gunslinging . | . . . . Exploded 2 | . . . 2 Melee 1 | . 1 . . Uniques/NPCs Destroyed . | . . . . Combat | -11 -10 -10 -8 -------- Run | Yrd Mat Sub Mat Hostile Shots Fired 212 | . 70 23 119 Missed 52 | . 20 4 28 Hits 160 | . 50 19 91 Projectile 160 | . 50 19 91 Critical Strikes 8 | . 1 1 6 Damage Taken 2389 | . 484 415 1490 Core 695 | . 113 25 557 Absorbed by Shields . | . . . . Core Remaining (%) 72 | 100 . 44 . Volleys Fired 47 | 5 6 3 33 Largest 2 | 2 1 1 2 Hottest 100 | 40 100 20 95 Shots Fired 75 | 10 6 3 56 Gun 63 | 10 . 3 50 Cannon . | . . . . Launcher 6 | . . . 6 Special 6 | . 6 . . Kinetic 40 | 10 . 3 27 Thermal 29 | . 6 . 23 Explosive 6 | . . . 6 Electromagnetic . | . . . . Robot Hit Streak 11 | 3 . 1 11 Robot Miss Streak 3 | 2 . 2 3 Penetration Max . | . . . . Secondary Targets . | . . . . Shots Hit Robots 87 | 6 30 7 44 Core Hits 38 | 3 5 . 30 Critical Kills . | . . . . Critical Parts Destroyed 5 | . 5 . . Critical Strikes 5 | . 5 . . Smash 5 | . 5 . . Melee Attacks 74 | . 62 7 5 Impact 55 | . 43 7 5 Slashing 19 | . 19 . . Piercing . | . . . . Sneak Attacks 2 | . 2 . . Combat Hostiles 2 | . 2 . . Follow-up Attacks . | . . . . Damage Inflicted 2174 | 90 863 132 1089 Guns 641 | 74 . 14 553 Cannons . | . . . . Explosions 482 | . . . 482 Melee 1035 | . 863 118 54 Ramming 16 | 16 . . . Kinetic 399 | 74 . 14 311 Thermal 242 | . . . 242 Explosive 482 | . . . 482 Electromagnetic . | . . . . Impact 1035 | . 863 118 54 Slashing . | . . . . Piercing . | . . . . Highest Corruption 2 | . 2 2 . Average Corruption 2 | . 2 2 . Corruption Purged . | . . . . Corruption Blocked . | . . . . Effects 10 | . 6 4 . Message Errors 3 | . 2 1 . Matter Fused 4 | . 2 2 . Data Loss (minor) 3 | . 2 1 . Overload Shots . | . . . . Overflow Damage 225 | . 217 . 8 Projectiles . | . . . . Explosions 8 | . . . 8 Melee 217 | . 217 . . Knockbacks 5 | . 4 1 . Impact 5 | . 4 1 . Kinetic . | . . . . Secondary . | . . . . Self-Inflicted Damage 33 | . . . 33 Shots 2 | . . . 2 Rammed . | . . . . Targets Rammed 13 | 12 1 . . Kicked 13 | 12 1 . . Crushed . | . . . . Highest Temperature 198 | . 44 . 198 Average Temperature 56 | . 17 . 69 Received Heat Transfer 984 | . 159 15 810 Siege Activations . | . . . . Martial Activations . | . . . . Shielding Activations . | . . . . Robots Disrupted . | . . . . Combat Hostiles . | . . . . Robots Corrupted 6 | . 6 . . Combat Hostiles 5 | . 5 . . Parts Fried 8 | . 8 . . Impact Corruptions 13 | . 13 . . Robots Melted . | . . . . Combat Hostiles . | . . . . Parts Melted 1 | . . . 1 Heat Transferred 592 | . . . 592 Parts Sabotaged . | . . . . Parts Stolen . | . . . . Parts Stripped . | . . . . Power Chain Reactions . | . . . . Alert | -11 -10 -10 -8 ------- Run | Yrd Mat Sub Mat Maximum Alert Level . | . . . . Low Security (%) 100 | 100 100 . 100 Level 1 . | . . . . Level 2 . | . . . . Level 3 . | . . . . Level 4 . | . . . . Level 5 . | . . . . High Security . | . . . . Max Security . | . . . . Peak Influence 167 | 5 90 . 167 Initial . | . . . . Average 22 | . 12 . 65 Influence Increases 614 | 5 296 . 313 Destroy 0b10 Robot/C 380 | . 220 . 160 Destroy 0b10 Robot/NC 30 | 5 5 . 20 Destroy Leader 92 | . 42 . 50 Successful Hack 27 | . 22 . 5 Destroy Structure 25 | . 7 . 18 Lose Combat Pursuer 60 | . . . 60 Influence Decreases 547 | 5 282 14 246 Entered New Map 7 | . . 7 . Time Decay 324 | 5 192 7 120 Lost Part 136 | . 10 . 126 Purge Threat 80 | . 80 . . Squads Dispatched 7 | . 2 . 5 Investigation . | . . . . Extermination . | . . . . Reinforcement 7 | . 2 . 5 Assault . | . . . . Garrison . | . . . . Intercept . | . . . . Searches Triggered . | . . . . Construction Impeded 1 | . . . 1 Haulers Reinforced . | . . . . Active Scanning Responses . | . . . . Cargo Convoy Interrupts . | . . . . Stealth | -11 -10 -10 -8 --------- Run | Yrd Mat Sub Mat Distress Signals 5 | . 3 . 2 Communications Jammed . | . . . . Distress Signals . | . . . . Times Spotted 59 | . 31 5 23 Peak Tracking Total 9 | . 3 2 9 Tactical Retreats 12 | . 8 1 3 ECM-based Alert Blocks 17 | . 14 . 3 Traps | -11 -10 -10 -8 ------- Run | Yrd Mat Sub Mat Traps Triggered 1 | . 1 . . Indirectly . | . . . . Trap Hack Attempts . | . . . . Triggered . | . . . . Disarmed . | . . . . Reprogrammed . | . . . . Reused . | . . . . Traps Extracted . | . . . . Installed . | . . . . Triggered . | . . . . Machines | -11 -10 -10 -8 ---------- Run | Yrd Mat Sub Mat Machines Disabled . | . . . . Max in Single Turn . | . . . . Machines Repaired . | . . . . Machines Dismantled . | . . . . Machines Sabotaged . | . . . . Overloaded Fab Kills . | . . . . Hacking | -11 -10 -10 -8 --------- Run | Yrd Mat Sub Mat Machines Accessed 7 | . 6 . 1 Terminals 7 | . 6 . 1 Fabricators . | . . . . Repair Stations . | . . . . Recycling Units . | . . . . Scanalyzers . | . . . . Garrison Access . | . . . . Total Hacks 26 | . 24 . 2 Successful 14 | . 12 . 2 Failed 12 | . 12 . . Catastrophic 1 | . 1 . . Database Lockouts . | . . . . Manual 19 | . 18 . 1 Terminals 26 | . 24 . 2 Fabricators . | . . . . Repair Stations . | . . . . Recycling Units . | . . . . Scanalyzers . | . . . . Garrison Access . | . . . . Terminal Hacks 7 | . 6 . 1 Record 1 | . . . 1 Terminal Index 1 | . 1 . . Alert Level 1 | . 1 . . Unreport Threat 1 | . 1 . . Dispatch Records 1 | . 1 . . Reinforcement Status 1 | . 1 . . Zone Layout 1 | . 1 . . Fabricator Hacks . | . . . . Repair Station Hacks . | . . . . Recycling Unit Hacks . | . . . . Scanalyzer . | . . . . Garrison Access Hacks . | . . . . Unauthorized Hacks 7 | . 6 . 1 Terminals 7 | . 6 . 1 Botnet 7 | . 6 . 1 Fabricators . | . . . . Repair Stations . | . . . . Recycling Units . | . . . . Scanalyzers . | . . . . Garrison Access . | . . . . Data Cores Recovered . | . . . . Used . | . . . . Hacking Detections 6 | . 5 . 1 Full Trace Events 2 | . 2 . . Feedback Events . | . . . . Feedback Blocked . | . . . . Robot Schematics Acquired . | . . . . Robots Built . | . . . . Authchips . | . . . . Time . | . . . . Total Robot Build Rating . | . . . . Part Schematics Acquired . | . . . . Parts Built . | . . . . Authchips . | . . . . Time . | . . . . Total Part Build Rating . | . . . . Part Studies Acquired . | . . . . Parts Repaired . | . . . . Time . | . . . . Parts Recycled . | . . . . Recycled Matter . | . . . . Retrieved Matter . | . . . . Retrieved Components . | . . . . Parts Scanalyzed . | . . . . Part Schematics Acquired . | . . . . Parts Damaged . | . . . . Bothacking | -11 -10 -10 -8 ------------ Run | Yrd Mat Sub Mat Used RIF Installer . | . . . . Robots Hacked . | . . . . Non-combat . | . . . . Combat . | . . . . Robot Hacks Applied . | . . . . Relay Couplers Released . | . . . . Fabnet Peak Effective % . | . . . . Robots Rewired . | . . . . Allies Hacked . | . . . . Hacks Repelled . | . . . . Allies | -11 -10 -10 -8 -------- Run | Yrd Mat Sub Mat Total Allies . | . . . . Largest Group . | . . . . Highest-Rated Group . | . . . . Highest-Rated Ally . | . . . . Total Orders . | . . . . Ally Attacks . | . . . . Total Damage . | . . . . Kills . | . . . . Allies Corrupted . | . . . . Allies Melted . | . . . . Intel | -11 -10 -10 -8 ------- Run | Yrd Mat Sub Mat Active Infowar (turns) 1383 | . 986 69 328 Seismic 668 | . 271 69 328 ECM 813 | . 715 . 98 Robot Analysis Total . | . . . . Derelict Logs Recovered . | . . . . Drone Launches . | . . . . Drone Recoveries . | . . . . Exploration | -11 -10 -10 -8 ------------- Run | Yrd Mat Sub Mat Turns Passed 1778 | 136 1072 241 329 Spaces Moved 1078 | 78 619 187 194 Core 19 | 16 3 . . Treads . | . . . . Legs 546 | 62 484 . . Wheels 513 | . 132 187 194 Hover . | . . . . Flight . | . . . . Fastest Speed 50 | 50 90 90 86 Average Speed 109 | 120 115 102 93 Slowest Speed 250 | 150 250 115 100 Overloaded Moves . | . . . . Propulsion Burnouts . | . . . . Robots Hopped . | . . . . Potential Cave-ins 14 | . 14 . . Cave-ins Triggered . | . . . . Exploration Rate (%) 28 | 3 84 8 17 Regions Visited 3 Branch Regions 1 Pre-discovered Areas . | . . . . Known Exits Taken . | . . . . Unknown Exits Taken 3 | 1 1 1 . Scrap Searched . | . . . . Spaces Dug 22 | . 22 . . Terrain Destroyed 44 | . 22 . 22 Melee 16 | . 16 . . Projectile 6 | . 6 . . AOE 22 | . . . 22 Terrain Rammed . | . . . . Walls Destroyed . | . . . . Machines Disabled . | . . . . Actions | -11 -10 -10 -8 --------- Run | Yrd Mat Sub Mat Total 1451 | 104 848 223 276 Wait 156 | . 127 12 17 Move 1075 | 77 618 186 194 Hop . | . . . . Pick Up 25 | 2 11 4 8 Fast Attach 13 | 7 3 . 3 Attach 18 | . 4 2 12 Detach 3 | . 1 1 1 Swap 14 | . 10 1 3 Drop 14 | 1 8 5 . Fire 47 | 5 6 3 33 Melee 71 | . 59 7 5 Ram . | . . . . Kick 13 | 12 1 . . Crush . | . . . . Escape Stasis . | . . . . Rewire . | . . . . Trap . | . . . . Miscellaneous 2 | . . 2 . Route ------- -11/Scrapyard -10/Materials (discovered 4 exits: [*Mat x2] / [*Min] / [*Sub]) -10/Subcaves -8/Materials History --------- Turn | Location | Event 8 | -11/Scrapyard | Discovered new exit (range 16) 137 | -11/Scrapyard | Entered Materials 322 | -10/Materials | Build established: Mutant 340 | -10/Materials | Discovered new exit (range 16) 1117 | -10/Materials | Discovered new exit (range 11) 1167 | -10/Materials | Discovered new exit (range 9) 1198 | -10/Materials | Discovered new exit (range 9) 1209 | -10/Materials | Entered Subcaves 1248 | -10/Subcaves | Ambushed by Subdwellers from Twisted Machinery 1392 | -10/Subcaves | Core integrity fell below 50% 1431 | -10/Subcaves | A swath of the cavern ceiling suddenly collapsed 1438 | -10/Subcaves | Discovered new exit (range 7) 1449 | -10/Subcaves | Ambushed by swarm of Subdwellers 1450 | -10/Subcaves | Entered Materials 1450 | -8/Materials | Evolved 4 slots: Propulsion x1, Utility x3 1587 | -8/Materials | Lost 4 parts (1p1u2w) 1758 | -8/Materials | Core integrity fell below 50% 1772 | -8/Materials | Core integrity fell below 20% 1779 | -8/Materials | Destroyed by G-47 Trooper with Particle Gun Last Messages --------------- 01729_ U-05 Engineer lays Concrete. 01730_ Critical hit (Burn: +37). 01730_ Slug penetrates Repair Station. 01731_ Critical hit (Burn: +37). 01733_ Slug penetrates Repair Station. 01733_ Wheel destroyed. 01735_ Lgt. Ion Engine destroyed. 01736_ Penetrated by Slug. 01737_ U-05 Engineer builds a Wall. 01739_ Lgt. Armor Plating destroyed. 01742_ Penetrated by Slug. 01742_ Com. Wheel destroyed. 01745_ Penetrated by Slug. 01748_ X-62 Marksman destroyed. 01749_ Hvy. Assault Rifle destroyed. 01753_ Particle Gun destroyed. 01756_ U-05 Engineer builds a Wall. 01757_ Critical hit (Burn: +37). 01773_ Sml. Storage Unit destroyed. 01775_ Critical hit (Burn: +37). Map ----- +----------------------------------------------------+ | ?????????????????????????????????????????????????? | | ?????????????????????????????????????????????????? | | ?????????????????????????????????????????????????? | | ?????????????????????????????????????????????????? | | ?????????????????????????????????????????????????? | | ?????????????????????????????????????????????????? | | ?????????????????????????????????????????????????? | | ?????????????????????????????????????????????????? | | ?????????????????????????????????????????????????? | | ?????????????????????????????????????????????????? | | ?????????????????????????????????????????????????? | | ?????????????????????????????????????????????????? | | ?????????????????????????????????????????????????? | | ?????????????????????????????????????????????????? | | ?????????????????????????????????????????????????? | | ?????????????????????????????????????????????????? | | ?????????????????????????????????????????????????? | | ?????????????????????????????????????????????????? | | ?????????????????????????????????????????????????? | | ?????????????????????????????????????????????????? | | ?????????????????????????????????????????????????? | | ??????????????????????????###????????????????????? | | ?????????? ############# ####?????????????????? | | ?????????? # #?????????????????? | | ?????????? T # "" #?????????????????? | | ????????????? #@=*"""#?????????????????? | | ????????????????????# %g%!= R"#?????????????????? | | ????????????????????# *g#=%!"""#?????????????????? | | ????????????????????# Y# gg #?????????????????? | | ????????????????????# ########?????????????????? | | ?????#########??????# #######????????????????? | | ?????# #??????# #????????????????? | | ?????# #??????# # #??????#########?? | | ?????# #??????# / ! #??????# [#?? | | ?????##### #??????#! # #??????# " " #?? | | ?????????# #??????# # ! #??????# "G" #?? | | ?????????# #?????## ## ####??????? """ #?? | | ??######## ####### # #??????????? ??? | | ??# ###################/### | | ??# " | | ??# | | ??# #####+######## % | | ?# ## ######+######## ######### | | "?# ## # T #???# #???????# | | " # ## # #???# #???????# | | " # ## # """"""" ##??# #???????# | | + ## # """"""" #??# #???????# | | " # ## # """"""" ##??# #???????# | | " ### ## # """"""" #???# #???????# | | "???# ## #???""""" #???# #???????# | +----------------------------------------------------+ Best States ------------- Heat Dissipation 31 Coolant Potential 100 Energy Generation 10 Energy Capacity 250 Matter Stores 300 Matter Capacity 350 Sight Range 16 Terrain Scan Density 85 ECM Strength 1 Armor Coverage 800 Evasion (%) 55 Item Schematics ----------------- None Robot Schematics ------------------ None Fabricated ------------ Nothing Repaired ---------- Nothing Studied --------- None Alien Tech Used ----------------- None Achievements -------------- Part-time Excavator Survival Of The Most Covered root@ Challenges ------------ None Game ------ Seed SignalFireNullifier Manual? 0 Play Time 00:36:14 Cumulative 16.1 hours Start 2026.04.30 @ 18:28:33 End 2026.04.30 @ 20:54:18 Sessions 2 Manual Loads 0 Difficulty Rogue Special Mode None Game No. 10 Rogue 9 Adventurer 1 Explorer 0 Win Type - Total 0 Types 0/0/0/0/0/0/0/0/0/0 Lore% 9 Gallery% 18 Achievement% 17 Wizard Run 0 Options --------- Layout 1 ASCII 0 Keyboard 0 Movement Numpad Keybinds 0 Fullscreen 2 Font 32/Terminus Map View 50x35 Zoom Use 0% Tactical HUD 1 Map Filters NONE Filters NONE Steam 1 RUN: 81f5b5ff-4f9b-4020-8cf2-8ff3717506cb